Cogmind - Beta 14 @@@ ROGUE MODE // 2025.03.29 @ 10:47:15 Player: Silfurdreki Result: Destroyed self with Rocket Launcher Performance ------------- Evolutions (0) 0 Regions Visited (2) 400 Robots Destroyed (15) 75 Value Destroyed (407) 407 Prototype IDs (0) 0 Alien Tech Used (0) 0 Bonus (0) 0 TOTAL SCORE: 882 Bonus ------- None Cogmind --------- Core Integrity 0/250 Matter 173/300 Energy 100/100 System Corruption 0% Temperature Cool (0) Movement Core (100) Ox1 Location -10/Mines Parts ------- > --- POWER (1) -------- (None) > --- PROPULSION (2) --- (None) > --- UTILITY (2) ------ Small Storage Unit Targeting Computer > --- WEAPON (2) ------- (None) > --- INVENTORY (8) ---- Ion Engine Ion Engine Wheel Improved Heat Sink Medium Laser Peak State ------------ > --- POWER ------------ Light Nuclear Core > --- PROPULSION ------- Compact Wheel Compact Wheel > --- UTILITY ---------- Improved Heat Sink Small Storage Unit > --- WEAPON ----------- EM Pulse Gun Medium Laser > --- INVENTORY -------- Ion Engine Ion Engine Assault Rifle Grenade Launcher [Rating: 11] Favorites ----------- Power Light Nuclear Core Engine Ion Engine Power Core Light Nuclear Core Propulsion Compact Wheel Wheel Compact Wheel Utility Small Storage Unit Device Improved Heat Sink Storage Small Storage Unit Processor Signal Interpreter Weapon EM Pulse Gun Energy Gun EM Pulse Gun Ballistic Gun Assault Rifle Ballistic Cannon Light Cannon Launcher Grenade Launcher Build | -11 -10 -10 ------- Run | Yrd Mat Min Slots Evolved . | . . . Power . | . . . Propulsion . | . . . Utility . | . . . Weapon . | . . . Parts Attached 24 | 7 13 4 Power 3 | 1 2 . Engine 1 | 1 . . Core 2 | . 2 . Reactor . | . . . Propulsion 4 | 2 2 . Treads . | . . . Leg . | . . . Wheel 4 | 2 2 . Hover . | . . . Flight . | . . . Utility 4 | 1 2 1 Device 1 | . 1 . Storage 1 | 1 . . Processor 2 | . 1 1 Hackware . | . . . Protection . | . . . Artifact . | . . . Weapon 13 | 3 7 3 Energy Gun 7 | 2 5 . Energy Cannon . | . . . Ballistic Gun 2 | 1 . 1 Ballistic Cannon 1 | . 1 . Launcher 3 | . 1 2 Special Weapon . | . . . Impact Weapon . | . . . Slashing Weapon . | . . . Piercing Weapon . | . . . Special Melee Weapon . | . . . Unidentified Prototypes . | . . . Parts Lost 9 | . 2 7 Power 1 | . . 1 Propulsion 2 | . . 2 Utility . | . . . Weapon 6 | . 2 4 Highest Loss Streak 6 | . 1 6 To Critical Strikes . | . . . Average Slot Usage (%) 88 | . 89 87 Engine 4 | . 5 . Core 9 | . 7 14 Wheel 24 | . 27 18 Storage 14 | . 14 14 Processor 8 | . 6 13 Energy Gun 18 | . 26 . Ballistic Cannon 4 | . . 13 Launcher 3 | . . 12 Peak Build Rating 11 | 6 11 10 Average Rating 7 | 4 7 9 On Entrance 4 | . 6 8 Naked Turns . | . . . Heaviest Build 16 | 14 15 16 Greatest Support 32 | 32 32 32 Greatest Overweight (x) 2 | . 2 . Average Overweight (x) . | . . . Largest Inventory Capacity 8 | 8 8 8 Average Capacity 7 | 7 8 8 Most Carried 8 | 2 8 7 Average Carried 5 | 1 5 6 Final Capacity 8 | 8 8 8 Final Carried 7 | 2 7 5 Class Distribution -------------------- 100% | Mutant Dominant Class ---------------- Mutant | -10/Materials Mutant | -10/Mines Resources | -11 -10 -10 ----------- Run | Yrd Mat Min Matter Collected 407 | 179 154 74 Remotely . | . . . Salvage Created 419 | . 306 113 Parts 32 | . 18 14 Haulers Intercepted . | . . . Recyclers Shooed 1 | . 1 . Parts Field Recycled . | . . . Retrieved Matter . | . . . Parts Self-Destructed . | . . . Prevented . | . . . Kills | -11 -10 -10 ------- Run | Yrd Mat Min Combat Hostiles Destroyed 14 | . 6 8 Guns 4 | . 4 . Cannons 3 | . 1 2 AOE 7 | . 1 6 Classes Destroyed 3 | . 2 1 Watcher 1 | . 1 . Swarmer 6 | . . 6 Grunt 8 | . 6 2 Best Kill Streak 6 | . 4 6 Combat Bots Only 6 | . 4 6 Max Kills in Single Turn 3 | . 1 3 Gunslinging . | . . . Exploded 2 | . 1 2 Melee . | . . . Uniques/NPCs Destroyed . | . . . Combat | -11 -10 -10 -------- Run | Yrd Mat Min Hostile Shots Fired 63 | . 43 20 Missed 21 | . 14 7 Damage Taken 927 | . 412 515 Core 256 | . 212 44 Absorbed by Shields . | . . . Core Remaining (%) 100 | 100 . . Volleys Fired 30 | . 21 9 Largest 2 | . 2 2 Hottest 90 | . 90 65 Shots Fired 55 | . 38 17 Gun 36 | . 35 1 Cannon 9 | . 2 7 Launcher 10 | . 1 9 Special . | . . . Kinetic 10 | . 2 8 Thermal 10 | . 10 . Explosive 10 | . 1 9 Electromagnetic 25 | . 25 . Robot Hit Streak 11 | . 10 11 Robot Miss Streak 5 | . 3 5 Penetration Max . | . . . Secondary Targets . | . . . Shots Hit Robots 31 | . 24 7 Core Hits 24 | . 11 13 Critical Kills . | . . . Critical Parts Destroyed . | . . . Critical Strikes . | . . . Melee Attacks . | . . . Impact . | . . . Slashing . | . . . Piercing . | . . . Sneak Attacks . | . . . Combat Hostiles . | . . . Follow-up Attacks . | . . . Damage Inflicted 887 | . 459 428 Guns 349 | . 339 10 Cannons 91 | . 36 55 Explosions 447 | . 84 363 Melee . | . . . Ramming . | . . . Kinetic 101 | . 36 65 Thermal 197 | . 197 . Explosive 363 | . . 363 Electromagnetic 226 | . 226 . Impact . | . . . Slashing . | . . . Piercing . | . . . Highest Corruption . | . . . Average Corruption . | . . . Corruption Purged . | . . . Corruption Blocked . | . . . Overload Shots . | . . . Overflow Damage 17 | . . 17 Projectiles . | . . . Explosions 17 | . . 17 Melee . | . . . Knockbacks . | . . . Impact . | . . . Kinetic . | . . . Secondary . | . . . Self-Inflicted Damage 138 | . 39 99 Shots 6 | . 1 5 Rammed 1 | . 1 . Targets Rammed 1 | . 1 . Kicked . | . . . Crushed . | . . . Highest Temperature 258 | . 258 27 Average Temperature 78 | . 95 9 Received Heat Transfer 195 | . 189 6 Siege Activations . | . . . Robots Corrupted . | . . . Combat Hostiles . | . . . Parts Fried . | . . . Impact Corruptions . | . . . Robots Melted . | . . . Combat Hostiles . | . . . Parts Melted . | . . . Heat Transferred 483 | . 483 . Parts Sabotaged . | . . . Parts Stolen . | . . . Parts Stripped . | . . . Power Chain Reactions 1 | . 1 . Alert | -11 -10 -10 ------- Run | Yrd Mat Min Peak Influence 268 | . 193 268 Initial 27 | . . 27 Average 110 | . 92 183 Maximum Alert Level 1 | . . 1 Low Security (%) 81 | 100 100 33 Level 1 18 | . . 66 Level 2 . | . . . Level 3 . | . . . Level 4 . | . . . Level 5 . | . . . High Security . | . . . Max Security . | . . . Squads Dispatched 1 | . 1 . Investigation . | . . . Extermination . | . . . Reinforcement 1 | . 1 . Assault . | . . . Garrison . | . . . Intercept . | . . . Searches Triggered . | . . . Construction Impeded . | . . . Haulers Reinforced . | . . . Active Scanning Responses . | . . . Cargo Convoy Interrupts . | . . . Stealth | -11 -10 -10 --------- Run | Yrd Mat Min Distress Signals 2 | . 2 . Communications Jammed . | . . . Distress Signals . | . . . Times Spotted 29 | . 18 11 Peak Tracking Total 9 | . 6 9 Tactical Retreats 1 | . 1 . Traps | -11 -10 -10 ------- Run | Yrd Mat Min Traps Triggered 4 | . 4 . Indirectly . | . . . Trap Hack Attempts . | . . . Triggered . | . . . Disarmed . | . . . Reprogrammed . | . . . Reused . | . . . Traps Extracted . | . . . Installed . | . . . Triggered . | . . . Machines | -11 -10 -10 ---------- Run | Yrd Mat Min Machines Disabled 2 | . 1 1 Max in Single Turn 1 | . 1 1 Machines Repaired . | . . . Machines Dismantled . | . . . Machines Sabotaged . | . . . Overloaded Fab Kills . | . . . Hacking | -11 -10 -10 --------- Run | Yrd Mat Min Machines Accessed 3 | . 3 . Terminals 2 | . 2 . Fabricators . | . . . Repair Stations . | . . . Recycling Units 1 | . 1 . Scanalyzers . | . . . Garrison Access . | . . . Total Hacks 7 | . 7 . Successful 3 | . 3 . Failed 4 | . 4 . Catastrophic . | . . . Database Lockouts . | . . . Manual 7 | . 7 . Terminals 5 | . 5 . Fabricators . | . . . Repair Stations . | . . . Recycling Units 2 | . 2 . Scanalyzers . | . . . Garrison Access . | . . . Terminal Hacks . | . . . Fabricator Hacks . | . . . Repair Station Hacks . | . . . Recycling Unit Hacks . | . . . Scanalyzer . | . . . Garrison Access Hacks . | . . . Unauthorized Hacks 3 | . 3 . Terminals 2 | . 2 . Botnet 2 | . 2 . Fabricators . | . . . Repair Stations . | . . . Recycling Units 1 | . 1 . Mask 1 | . 1 . Scanalyzers . | . . . Garrison Access . | . . . Data Cores Recovered . | . . . Used . | . . . Hacking Detections 3 | . 3 . Full Trace Events 1 | . 1 . Feedback Events . | . . . Feedback Blocked . | . . . Robot Schematics Acquired . | . . . Robots Built . | . . . Authchips . | . . . Time . | . . . Total Robot Build Rating . | . . . Part Schematics Acquired . | . . . Parts Built . | . . . Authchips . | . . . Time . | . . . Total Part Build Rating . | . . . Parts Repaired . | . . . Time . | . . . Parts Recycled . | . . . Recycled Matter . | . . . Retrieved Matter . | . . . Retrieved Components . | . . . Parts Scanalyzed . | . . . Part Schematics Acquired . | . . . Parts Damaged . | . . . Bothacking | -11 -10 -10 ------------ Run | Yrd Mat Min Used RIF Installer . | . . . Robots Hacked . | . . . Non-combat . | . . . Combat . | . . . Robot Hacks Applied . | . . . Relay Couplers Released . | . . . Fabnet Peak Effective % . | . . . Robots Rewired . | . . . Allies Hacked . | . . . Hacks Repelled . | . . . Allies | -11 -10 -10 -------- Run | Yrd Mat Min Total Allies . | . . . Largest Group . | . . . Highest-Rated Group . | . . . Highest-Rated Ally . | . . . Total Orders . | . . . Ally Attacks . | . . . Total Damage . | . . . Kills . | . . . Allies Corrupted . | . . . Allies Melted . | . . . Intel | -11 -10 -10 ------- Run | Yrd Mat Min Robot Analysis Total . | . . . Derelict Logs Recovered . | . . . Drone Launches . | . . . Drone Recoveries . | . . . Exploration | -11 -10 -10 ------------- Run | Yrd Mat Min Turns Passed 674 | 55 432 187 Spaces Moved 537 | 44 338 155 Core 3 | 1 2 . Treads . | . . . Legs . | . . . Wheels 534 | 43 336 155 Hover . | . . . Flight . | . . . Fastest Speed 50 | 50 100 100 Average Speed 100 | 98 100 100 Slowest Speed 150 | 100 150 100 Overloaded Moves . | . . . Propulsion Burnouts . | . . . Robots Hopped . | . . . Cave-ins Triggered . | . . . Exploration Rate (%) 33 | 3 55 41 Regions Visited 2 Branch Regions 1 Pre-discovered Areas . | . . . Known Exits Taken . | . . . Unknown Exits Taken 2 | 1 1 . Scrap Searched . | . . . Spaces Dug . | . . . Terrain Destroyed 64 | . 7 57 Melee . | . . . Projectile . | . . . AOE 64 | . 7 57 Terrain Rammed . | . . . Walls Destroyed . | . . . Machines Disabled . | . . . Actions | -11 -10 -10 --------- Run | Yrd Mat Min Total 611 | 52 388 171 Wait 12 | . 10 2 Move 535 | 43 337 155 Hop . | . . . Pick Up 8 | 2 5 1 Fast Attach 14 | 6 8 . Attach 5 | . 2 3 Detach 1 | . 1 . Swap 5 | 1 3 1 Drop . | . . . Fire 30 | . 21 9 Melee . | . . . Ram 1 | . 1 . Kick . | . . . Crush . | . . . Escape Stasis . | . . . Rewire . | . . . Trap . | . . . Miscellaneous . | . . . Route ------- -11/Scrapyard -10/Materials (discovered 2 exits: *Mat / [*Min]) -10/Mines History --------- Turn | Location | Event 10 | -11/Scrapyard | Discovered new exit (range 16) 56 | -11/Scrapyard | Entered Materials 228 | -10/Materials | Core integrity fell below 50% 235 | -10/Materials | Discovered new exit (range 16) 289 | -10/Materials | Identified exit to Materials 314 | -10/Materials | Build established: Mutant 355 | -10/Materials | Discovered new exit (range 11) 479 | -10/Materials | Core integrity fell below 20% 488 | -10/Materials | Entered Mines 516 | -10/Mines | Received a Rocket Launcher from a helpful Derelict 616 | -10/Mines | Assembled infested the area 675 | -10/Mines | Destroyed self with Rocket Launcher Last Messages --------------- 00601_ The unstable cave ceiling collapses. 00605_ U-05 Engineer lays Concrete. 00608_ U-05 Engineer builds a Wall. 00609_ Acquired 42 matter. 00612_ U-05 Engineer lays Concrete. 00615_ U-05 Engineer builds a Wall. 00616_ ALERT: Infestation in the mines, dispatching Demolisher response squad. 00630_ as-85227 destroyed. 00630_ as-01141 destroyed. 00632_ as-48150 destroyed. 00632_ as-03998 destroyed. 00667_ Grenade Launcher destroyed. 00669_ Lgt. Cannon destroyed. 00671_ Lgt. Nuclear Core destroyed. 00675_ Com. Wheel destroyed. 00675_ Assault Rifle destroyed. 00675_ Destroyed Shock Absorption System. 00675_ Rocket Launcher destroyed. 00675_ Destroyed Rocket Launcher. Map ----- +----------------------------------------------------+ | | | | | | | | | | | | | | | | | | | | | | | | | | | | | | | | | | | | | | | | | ??????????????????????#######????????????????????? | | #????????????????????## ##???????????????????? | | #?????????????????#### ##??????????????????? | | #????????????????## #??????????????????? | | #???????????????## #??????????????????? | | #####??????????## @ ##?????????????????? | | #????????### #?????????????????? | | ### #????##### #????????????????? | | #?# #????# dd #????????????????? | | #?# #????# #### # #????????????????? | | ??# #????# #??## ### ##????????????????? | | ??# #????# #???## #??##?????????????????? | | ??# #????# #???## ##????????????????????? | | ??# #????# #?### ##???????????????????? | | ??# #????# ### #???????????????????? | | ??# #????# ## #???????????????????? | | ### ###### ## ##??????????????????? | | #??????????????????? | | #??????????????????? | | ############ ##??????????????????? | | ####???????## ##???????????????????? | | #?######### ##????????????????????? | | ### # #?# ### #?????????????????????? | | " ## # ##?## ##?# #?????????????????????? | | ##?## #??# ###???????????????????? | | [ ######## #??# #???????????????????? | | = ###### #??## #???????????????????? | | == #??## #???????????????????? | | ## #?## #???????????????????? | | ##### # ####### #?# #####???????????????? | +----------------------------------------------------+ Best States ------------- Heat Dissipation 39 Energy Generation 14 Energy Capacity 250 Matter Stores 300 Matter Capacity 300 Sight Range 16 Terrain Scan Density 10 Evasion (%) 40 Targeting Accuracy 5 Item Schematics ----------------- None Robot Schematics ------------------ None Fabricated ------------ Nothing Alien Tech Used ----------------- None Achievements -------------- None Challenges ------------ None Game ------ Seed TimingDeepVibroblade Manual? 0 Play Time 00:08:26 Cumulative 29.4 hours Start 2025.03.29 @ 10:38:56 End 2025.03.29 @ 10:47:15 Sessions 1 Manual Loads 0 Difficulty Rogue Special Mode None Game No. 48 Rogue 48 Adventurer 0 Explorer 0 Win Type - Total 0 Types 0/0/0/0/0/0/0/0/0 Lore% 26 Gallery% 31 Achievement% 30 Wizard Run 0 Options --------- Layout 1 ASCII 0 Keyboard 0 Movement Numpad Keybinds 0 Fullscreen 1 Font 32/SmallcapsGlow Map View 50x35 Zoom Use 0% Tactical HUD 1 Map Filters NONE Filters NONE Steam 1 RUN: fba9348d-f709-46e8-b0f7-25e3703edaea